Cogmind - Beta 11 X7 @@@ ROGUE MODE // 2021.08.25 @ 11:05:49 Player: PhenomPhear Result: Self-destructed Performance ------------- Evolutions (4) 2000 Regions Visited (6) 1200 Robots Destroyed (0) 0 Value Destroyed (0) 0 Prototype IDs (0) 0 Alien Tech Used (0) 0 Bonus (1325) 1325 TOTAL SCORE: 4525 Bonus ------- Pacifist 1325 Cogmind --------- Core Integrity 716/850 Matter 279/300 Energy 100/100 System Corruption 0% Temperature Cool (2) Movement Flying (40) Location -6/Factory Parts ------- > --- POWER (1) -------- (None) > --- PROPULSION (10) -- Nuclear Pulse Thruster > --- UTILITY (2) ------ (None) > --- WEAPON (2) ------- (None) > --- INVENTORY (5) ---- Improved Signal Interpreter Peak State ------------ > --- POWER ------------ (None) > --- PROPULSION ------- Xenon Bombardment Thruster Nuclear Pulse Thruster > --- UTILITY ---------- (None) > --- WEAPON ----------- (None) > --- INVENTORY -------- Improved Signal Interpreter [Rating: 9] Favorites ----------- Power None Propulsion Xenon Bombardment Thruster Flight Unit Xenon Bombardment Thruster Utility Improved Signal Interpreter Device Improved Sensor Array Processor Improved Signal Interpreter Protection Improved Light Armor Plating Weapon None Build | -11 -10 -9 -8 -8 -7 -6 ------- Run | Scr Mat Mat Mat Sto Fac Fac Slots Evolved 8 | . . 2 2 . 2 2 Power . | . . . . . . . Propulsion 8 | . . 2 2 . 2 2 Utility . | . . . . . . . Weapon . | . . . . . . . Parts Attached 7 | . . . 1 3 2 1 Power . | . . . . . . . Engine . | . . . . . . . Core . | . . . . . . . Reactor . | . . . . . . . Propulsion 4 | . . . . 2 1 1 Treads . | . . . . . . . Leg . | . . . . . . . Wheel . | . . . . . . . Hover . | . . . . . . . Flight 4 | . . . . 2 1 1 Utility 3 | . . . 1 1 1 . Device 1 | . . . . 1 . . Storage . | . . . . . . . Processor 1 | . . . . . 1 . Hackware . | . . . . . . . Protection 1 | . . . 1 . . . Artifact . | . . . . . . . Weapon . | . . . . . . . Energy Gun . | . . . . . . . Energy Cannon . | . . . . . . . Ballistic Gun . | . . . . . . . Ballistic Cannon . | . . . . . . . Launcher . | . . . . . . . Special Weapon . | . . . . . . . Impact Weapon . | . . . . . . . Slashing Weapon . | . . . . . . . Piercing Weapon . | . . . . . . . Special Melee Weapon . | . . . . . . . Unidentified Prototypes . | . . . . . . . Parts Lost 4 | . . . . 3 . 1 Power . | . . . . . . . Propulsion 3 | . . . . 2 . 1 Utility 1 | . . . . 1 . . Weapon . | . . . . . . . Highest Loss Streak 3 | . . . . 3 . 1 Average Slot Usage (%) 5 | . . . 3 12 3 11 Flight 2 | . . . . . . 11 Processor 1 | . . . . . 3 . Protection 1 | . . . 3 5 . . Naked Turns 355 | . 70 135 37 27 86 . Heaviest Build 4 | . . . 3 4 . . Greatest Support 12 | 3 3 3 3 4 6 12 Greatest Overweight (x) 1 | . . . . 1 . . Average Overweight (x) . | . . . . . . . Largest Inventory Capacity 5 | 5 5 5 5 5 5 5 Average Capacity 5 | 5 5 5 5 5 5 5 Most Carried 2 | . . . . 2 2 1 Average Carried . | . . . . . 1 1 Final Capacity 5 | 5 5 5 5 5 5 5 Final Carried 2 | . . . . 2 1 1 Class Distribution -------------------- 100% | Mutant Dominant Class ---------------- Mutant | -10/Materials Mutant | -9/Materials Mutant | -8/Materials Mutant | -8/Storage Mutant | -7/Factory Mutant | -6/Factory Resources | -11 -10 -9 -8 -8 -7 -6 ----------- Run | Scr Mat Mat Mat Sto Fac Fac Matter Collected 197 | . . . . 197 . . Remotely . | . . . . . . . Salvage Created . | . . . . . . . Parts . | . . . . . . . Haulers Intercepted . | . . . . . . . Recyclers Shooed . | . . . . . . . Parts Field Recycled . | . . . . . . . Retrieved Matter . | . . . . . . . Parts Self-Destructed . | . . . . . . . Prevented . | . . . . . . . Kills | -11 -10 -9 -8 -8 -7 -6 ------- Run | Scr Mat Mat Mat Sto Fac Fac Combat Hostiles Destroyed . | . . . . . . . Classes Destroyed . | . . . . . . . Best Kill Streak . | . . . . . . . Combat Bots Only . | . . . . . . . Max Kills in Single Turn . | . . . . . . . Gunslinging . | . . . . . . . Exploded . | . . . . . . . Melee . | . . . . . . . Uniques/NPCs Destroyed . | . . . . . . . Combat | -11 -10 -9 -8 -8 -7 -6 -------- Run | Scr Mat Mat Mat Sto Fac Fac Damage Taken 1778 | . 107 215 204 597 507 148 Core 1498 | . 107 215 121 428 493 134 Absorbed by Shields 32 | . . . . 32 . . Core Remaining (%) 46 | 100 57 46 . . 29 . Volleys Fired . | . . . . . . . Largest . | . . . . . . . Hottest . | . . . . . . . Shots Fired . | . . . . . . . Gun . | . . . . . . . Cannon . | . . . . . . . Launcher . | . . . . . . . Special . | . . . . . . . Kinetic . | . . . . . . . Thermal . | . . . . . . . Explosive . | . . . . . . . Electromagnetic . | . . . . . . . Robot Hit Streak . | . . . . . . . Robot Miss Streak . | . . . . . . . Penetration Max . | . . . . . . . Secondary Targets . | . . . . . . . Shots Hit Robots . | . . . . . . . Core Hits 2 | . . 1 . . 1 . Critical Kills . | . . . . . . . Critical Parts Destroyed . | . . . . . . . Critical Strikes . | . . . . . . . Melee Attacks . | . . . . . . . Impact . | . . . . . . . Slashing . | . . . . . . . Piercing . | . . . . . . . Sneak Attacks . | . . . . . . . Combat Hostiles . | . . . . . . . Follow-up Attacks . | . . . . . . . Damage Inflicted 79 | . . 29 16 . 34 . Guns . | . . . . . . . Cannons . | . . . . . . . Explosions . | . . . . . . . Melee . | . . . . . . . Ramming 79 | . . 29 16 . 34 . Kinetic . | . . . . . . . Thermal . | . . . . . . . Explosive . | . . . . . . . Electromagnetic . | . . . . . . . Impact . | . . . . . . . Slashing . | . . . . . . . Piercing . | . . . . . . . Highest Corruption . | . . . . . . . Average Corruption . | . . . . . . . Corruption Purged . | . . . . . . . Overload Shots . | . . . . . . . Overflow Damage . | . . . . . . . Projectiles . | . . . . . . . Explosions . | . . . . . . . Melee . | . . . . . . . Knockbacks . | . . . . . . . Impact . | . . . . . . . Kinetic . | . . . . . . . Secondary . | . . . . . . . Self-Inflicted Damage 37 | . . 14 7 . 16 . Shots . | . . . . . . . Rammed 12 | . . 5 3 . 4 . Targets Rammed 12 | . . 5 3 . 4 . Kicked . | . . . . . . . Crushed . | . . . . . . . Highest Temperature 8 | . . . . 8 . . Average Temperature 8 | . . . . 8 . . Received Heat Transfer 387 | . . 51 63 189 84 . Siege Activations . | . . . . . . . Robots Corrupted . | . . . . . . . Combat Hostiles . | . . . . . . . Parts Fried . | . . . . . . . Impact Corruptions . | . . . . . . . Robots Melted . | . . . . . . . Combat Hostiles . | . . . . . . . Parts Melted . | . . . . . . . Heat Transferred . | . . . . . . . Parts Sabotaged . | . . . . . . . Parts Stolen . | . . . . . . . Parts Stripped . | . . . . . . . Power Chain Reactions . | . . . . . . . Missiles Intercepted . | . . . . . . . Alert | -11 -10 -9 -8 -8 -7 -6 ------- Run | Scr Mat Mat Mat Sto Fac Fac Peak Influence 327 | . 30 327 182 101 171 140 Initial 137 | . . 12 137 76 41 83 Average 104 | . 4 137 168 86 104 113 Maximum Alert Level 1 | . . 1 . . . . Low Security (%) 95 | 100 100 74 100 100 100 100 Level 1 4 | . . 25 . . . . Level 2 . | . . . . . . . Level 3 . | . . . . . . . Level 4 . | . . . . . . . Level 5 . | . . . . . . . High Security . | . . . . . . . Max Security . | . . . . . . . Squads Dispatched 5 | . . 2 . 1 2 . Investigation . | . . . . . . . Extermination . | . . . . . . . Reinforcement 5 | . . 2 . 1 2 . Assault . | . . . . . . . Garrison . | . . . . . . . Intercept . | . . . . . . . Construction Impeded . | . . . . . . . Haulers Reinforced 1 | . . . . . 1 . Active Scanning Responses . | . . . . . . . Cargo Convoy Interrupts . | . . . . . . . Stealth | -11 -10 -9 -8 -8 -7 -6 --------- Run | Scr Mat Mat Mat Sto Fac Fac Distress Signals 2 | . . 1 . . 1 . Communications Jammed . | . . . . . . . Distress Signals . | . . . . . . . Times Spotted 62 | . 5 21 4 17 8 7 Peak Tracking Total 14 | . 3 11 4 14 6 5 Tactical Retreats 9 | . 1 5 1 . 2 . Traps | -11 -10 -9 -8 -8 -7 -6 ------- Run | Scr Mat Mat Mat Sto Fac Fac Traps Triggered 2 | . . . . 1 1 . Indirectly . | . . . . . . . Trap Hack Attempts . | . . . . . . . Triggered . | . . . . . . . Disarmed . | . . . . . . . Reprogrammed . | . . . . . . . Reused . | . . . . . . . Traps Extracted . | . . . . . . . Installed . | . . . . . . . Triggered . | . . . . . . . Machines | -11 -10 -9 -8 -8 -7 -6 ---------- Run | Scr Mat Mat Mat Sto Fac Fac Machines Disabled . | . . . . . . . Max in Single Turn . | . . . . . . . Machines Sabotaged . | . . . . . . . Garrisons Compromised . | . . . . . . . Overloaded Fab Kills . | . . . . . . . Fab Network Shutdowns . | . . . . . . . Hacking | -11 -10 -9 -8 -8 -7 -6 --------- Run | Scr Mat Mat Mat Sto Fac Fac Machines Accessed 5 | . . . . 1 3 1 Terminals 5 | . . . . 1 3 1 Fabricators . | . . . . . . . Repair Stations . | . . . . . . . Recycling Units . | . . . . . . . Scanalyzers . | . . . . . . . Garrison Access . | . . . . . . . Total Hacks 7 | . . . . 2 4 1 Successful 4 | . . . . 1 2 1 Failed 3 | . . . . 1 2 . Catastrophic 2 | . . . . 1 1 . Database Lockouts . | . . . . . . . Manual 1 | . . . . . 1 . Terminals 7 | . . . . 2 4 1 Fabricators . | . . . . . . . Repair Stations . | . . . . . . . Recycling Units . | . . . . . . . Scanalyzers . | . . . . . . . Garrison Access . | . . . . . . . Terminal Hacks 4 | . . . . 1 2 1 Record 1 | . . . . . 1 . Open Door 1 | . . . . 1 . . Branch Access Points 2 | . . . . . 1 1 Fabricator Hacks . | . . . . . . . Repair Station Hacks . | . . . . . . . Recycling Unit Hacks . | . . . . . . . Scanalyzer . | . . . . . . . Garrison Access Hacks . | . . . . . . . Unauthorized Hacks . | . . . . . . . Terminals . | . . . . . . . Fabricators . | . . . . . . . Repair Stations . | . . . . . . . Recycling Units . | . . . . . . . Scanalyzers . | . . . . . . . Garrison Access . | . . . . . . . Data Cores Recovered . | . . . . . . . Used . | . . . . . . . Hacking Detections 3 | . . . . . 2 1 Full Trace Events . | . . . . . . . Feedback Events . | . . . . . . . Feedback Blocked . | . . . . . . . Robot Schematics Acquired . | . . . . . . . Robots Built . | . . . . . . . Matter . | . . . . . . . Time . | . . . . . . . Total Robot Build Rating . | . . . . . . . Part Schematics Acquired . | . . . . . . . Parts Built . | . . . . . . . Matter . | . . . . . . . Time . | . . . . . . . Total Part Build Rating . | . . . . . . . Parts Repaired . | . . . . . . . Time . | . . . . . . . Parts Recycled . | . . . . . . . Recycled Matter . | . . . . . . . Retrieved Matter . | . . . . . . . Retrieved Components . | . . . . . . . Parts Scanalyzed . | . . . . . . . Part Schematics Acquired . | . . . . . . . Parts Damaged . | . . . . . . . Bothacking | -11 -10 -9 -8 -8 -7 -6 ------------ Run | Scr Mat Mat Mat Sto Fac Fac Used RIF Installer . | . . . . . . . Robots Hacked . | . . . . . . . Non-combat . | . . . . . . . Combat . | . . . . . . . Robot Hacks Applied . | . . . . . . . Relay Couplers Released . | . . . . . . . Robots Rewired . | . . . . . . . Allies Hacked . | . . . . . . . Hacks Repelled . | . . . . . . . Allies | -11 -10 -9 -8 -8 -7 -6 -------- Run | Scr Mat Mat Mat Sto Fac Fac Total Allies . | . . . . . . . Largest Group . | . . . . . . . Highest-Rated Group . | . . . . . . . Highest-Rated Ally . | . . . . . . . Total Orders . | . . . . . . . Ally Attacks . | . . . . . . . Total Damage . | . . . . . . . Kills . | . . . . . . . Allies Corrupted . | . . . . . . . Allies Melted . | . . . . . . . Intel | -11 -10 -9 -8 -8 -7 -6 ------- Run | Scr Mat Mat Mat Sto Fac Fac Robot Analysis Total . | . . . . . . . Derelict Logs Recovered . | . . . . . . . Drone Launches . | . . . . . . . Drone Recoveries . | . . . . . . . Exploration | -11 -10 -9 -8 -8 -7 -6 ------------- Run | Scr Mat Mat Mat Sto Fac Fac Turns Passed 712 | 9 70 135 70 110 201 117 Spaces Moved 1381 | 18 140 259 132 136 391 305 Core 1059 | 18 140 259 132 128 382 . Treads . | . . . . . . . Legs . | . . . . . . . Wheels . | . . . . . . . Hover . | . . . . . . . Flight 322 | . . . . 8 9 305 Fastest Speed 37 | 50 50 50 50 40 40 37 Average Speed 49 | 50 50 50 50 68 49 37 Slowest Speed 100 | 50 50 50 50 100 50 40 Overloaded Moves . | . . . . . . . Propulsion Burnouts . | . . . . . . . Robots Hopped 4 | . . . . . . 4 Cave-ins Triggered . | . . . . . . . Exploration Rate (%) 22 | 3 37 38 23 31 14 11 Regions Visited 6 Branch Regions 1 Pre-discovered Areas . | . . . . . . . Known Exits Taken . | . . . . . . . Unknown Exits Taken 6 | 1 1 1 1 1 1 . Scrap Searched . | . . . . . . . Spaces Dug . | . . . . . . . Terrain Destroyed . | . . . . . . . Melee . | . . . . . . . Projectile . | . . . . . . . AOE . | . . . . . . . Terrain Rammed . | . . . . . . . Walls Destroyed . | . . . . . . . Machines Disabled . | . . . . . . . Actions | -11 -10 -9 -8 -8 -7 -6 --------- Run | Scr Mat Mat Mat Sto Fac Fac Total 1403 | 17 139 263 135 151 396 302 Wait . | . . . . . . . Move 1369 | 17 139 258 132 135 390 298 Hop 3 | . . . . . . 3 Pick Up 2 | . . . . 2 . . Fast Attach 6 | . . . 1 3 1 1 Attach 1 | . . . . . 1 . Detach . | . . . . . . . Swap . | . . . . . . . Drop 1 | . . . . 1 . . Fire . | . . . . . . . Melee . | . . . . . . . Ram 11 | . . 5 2 . 4 . Kick . | . . . . . . . Crush . | . . . . . . . Escape Stasis 10 | . . . . 10 . . Rewire . | . . . . . . . Trap . | . . . . . . . Miscellaneous . | . . . . . . . Route ------- -11/Scrapyard -10/Materials (discovered 2 exits: *Mat / [*Min]) -9/Materials (discovered 3 exits: [*Mat] / [*Min x2]) -8/Materials -8/Storage -7/Factory (discovered 4 exits: *Fac x2 / Low x2) -6/Factory (discovered 2 exits: Low x2) History --------- Turn | Location | Event 4 | -11/Scrapyard | Discovered new exit (range 13) 10 | -11/Scrapyard | Entered Materials 42 | -10/Materials | Discovered new exit (range 16) 72 | -10/Materials | Discovered new exit (range 16) 80 | -10/Materials | Entered another Materials area 80 | -9/Materials | Evolved 2 slots: Propulsion x2 112 | -9/Materials | Discovered new exit (range 6) 163 | -9/Materials | Discovered new exit (range 12) 207 | -9/Materials | Discovered new exit (range 16) 212 | -9/Materials | Core integrity fell below 50% 215 | -9/Materials | Entered another Materials area 215 | -8/Materials | Evolved 2 slots: Propulsion x2 282 | -8/Materials | Discovered new exit (range 5) 285 | -8/Materials | Entered Storage 319 | -8/Storage | Build established: Mutant 370 | -8/Storage | Core integrity fell below 50% 376 | -8/Storage | Core integrity fell below 20% 393 | -8/Storage | Discovered new exit (range 6) 395 | -8/Storage | Entered Factory 395 | -7/Factory | Evolved 2 slots: Propulsion x2 405 | -7/Factory | Lost 3 parts (2n1u) 473 | -7/Factory | Identified exit to Lower Caves 504 | -7/Factory | Core integrity fell below 50% 586 | -7/Factory | Discovered new exit (range 15) 595 | -7/Factory | Discovered new exit (range 15) 596 | -7/Factory | Entered another Factory area 596 | -6/Factory | Evolved 2 slots: Propulsion x2 648 | -6/Factory | Identified exit to Lower Caves 713 | -6/Factory | Self-destructed Last Messages --------------- 00629_ K-01 Serf cleans the Pressure Siphon. 00631_ T-07 Excavator is excavating. 00632_ K-01 Serf cleans the Pressure Siphon. 00643_ K-01 Serf cleans the Subcomponent Replicator. 00648_ Connecting with Terminal... 00648_ Current location identified: Factory >>Access(Branch) Found 2 branch access points: (195,20) Lower Caves (49,18) Lower Caves Map updated. 00680_ K-01 Serf cleans the Subcomponent Replicator. 00690_ K-01 Serf cleans the Pressure Siphon. 00701_ Penetrated by Slug. 00701_ Xenon Bombardment Thruster destroyed. 00701_ Critical hit (Blast). 00701_ Knocked back. 00703_ Penetrated by Slug. 00703_ Knocked back. 00707_ K-01 Serf cleans the Fusion Modulator. Map ----- +----------------------------------------------------+ | ??????????????????????+ | | ????????????????????????# % % ]]] | | ????????????????????????#! ##"## ]]] [ | | ????????????????????????### ###?### ]] | | ??????????????????????????# #?????################ | | ??????????????????????????#H#?????? + | | ???????????????###+######## #???? ????????#### | | ???????????????# #?? ?????????????? | | ???????????????# # """ ""?????????????? | | ???????????????# !! + """ """????????????? | | ???????????????# ! # """ """ #??????????? | | ???????????????# # #??????????? | | ???????????????## + #??????????? | | ????????????????# """ #####/####???????????? | | ????????????????# """ ##### #??????????????? | | ????????????????# """ #??????????????? | | ????????????????# # ????????????? | | ????????????????# """ """ / ????????????? | | ????????????????# """ """ g #??????????????? | | ????????????????+ """k """ #??????????????? | | ????????????????# #??????????????? | | ????????????????# """ #??????????????? | | ????????????????# """ ####???????????? | | ????????????????# """ ????????? | | ????????????????# ????????? | | ????????????????# #### @""" ????????? | | ????????????????# ???# """ ????????? | | ????????????????##+????# """ ???????????? | | ???????????????????????# ????????????? | | ???????????????????????# """ ????????????? | | ???????????????????????# """ ? ?????????????? | | ???????????????????????# """ A g????????????????? | | ???????????????????????# ??? ????????????????? | | ???????????????????????# ""?????????????????????? | | ???????????????????????# "??????????????????????? | | ???????????????????????# "??????????????????????? | | ???????????????????????+ ???????????????????????? | | ???????????????????????# ???????????????????????? | | ???????????????????????? ???????????????????????? | | ???????????????????????? ???????????????????????? | | ???????????????????????? ???????????????????????? | | ?????????????????????????????????????????????????? | | ?????????????????????????????????????????????????? | | ?????????????????????????????????????????????????? | | ?????????????????????????????????????????????????? | | ?????????????????????????????????????????????????? | | ?????????????????????????????????????????????????? | | ?????????????????????????????????????????????????? | | ?????????????????????????????????????????????????? | | ?????????????????????????????????????????????????? | +----------------------------------------------------+ Best States ------------- Heat Dissipation 37 Energy Generation 5 Energy Capacity 100 Matter Stores 300 Matter Capacity 300 Sight Range 16 Robot Scan Range 15 Terrain Scan Density 10 Armor Coverage 150 Evasion (%) 62 Item Schematics ----------------- None Robot Schematics ------------------ None Fabricated ------------ Nothing Alien Tech Used ----------------- None Achievements -------------- None Challenges ------------ None Game ------ Seed ShrapnelFactoryExtractor Manual? 0 Play Time 00:12:03 Cumulative 1089.1 hours Start 2021.08.25 @ 10:55:32 End 2021.08.25 @ 11:05:49 Sessions 1 Manual Loads 0 Difficulty Rogue Special Mode None Game No. 688 Rogue 688 Adventurer 0 Explorer 0 Win Type - Total 18 Types 10/1/4/3/0/0/0/0/0 Lore% 89 Gallery% 90 Achievement% 81 Wizard Run 0 Options --------- ASCII 0 Keyboard 0 Movement Mouse Keybinds 0 Fullscreen 1 Font 24/Smallcaps Map View 76x50 Tactical HUD 1 Map Filters NONE Filters NONE Steam 1 RUN: 0388ac77-7baf-40ea-bb95-efac20e596d6